fUST/lending_fUST_20240612
["ID","MTS","AMOUNT","RATE_DAILY","PERIOD"]
[329199203,1718172637393,-500.0,0.00016712,2]
[329199204,1718172637405,-1140.06,0.00016712,2]
[329199205,1718172637419,-500.0,0.00016712,2]
[329199206,1718172637435,-709.43,0.00016712,2]
[329199207,1718172637454,-585.37,0.00016712,2]
[329199208,1718172637470,-500.0,0.00016712,2]
[329199209,1718172637487,-500.0,0.00016712,2]
[329199210,1718172637500,-785.29,0.00016949,2]
[329199211,1718172637514,-2712.11252312,0.0001695,2]
[329199212,1718172637528,-500.0,0.00016986,4]
[329199213,1718172637540,-250.0,0.00016986,2]
[329199214,1718172637553,-500.0,0.00016986,2]
[329199215,1718172637567,-500.0,0.00016986,2]
[329199216,1718172637581,-1800.05,0.00016986,2]
[329199217,1718172637596,-500.0,0.00016986,2]
[329199218,1718172637609,-500.0,0.00016986,2]
[329199219,1718172637620,-507.93413676,0.00016986,2]
[329199220,1718172637632,-500.0,0.00016986,2]
[329199221,1718172637646,-500.0,0.00016986,2]
[329199222,1718172637658,-508.22836389,0.00016986,2]
[329199223,1718172637670,-500.0,0.00016986,2]
[329199224,1718172637682,-500.0,0.00016986,2]
[329199225,1718172637696,-500.0,0.00016986,2]
[329199226,1718172637708,-754.57,0.00016986,2]
[329199227,1718172637726,-500.0,0.00016986,2]
[329199228,1718172637760,-500.0,0.00016986,2]
[329199229,1718172637773,-199.13831297,0.00016986,2]
[329199230,1718172637801,-991.24,0.00016986,2]
[329199231,1718172637819,-506.52,0.00016986,2]
[329199232,1718172637839,-5830.46,0.00016986,2]
[329199233,1718172637869,-500.0,0.00016986,2]
[329199234,1718172637886,-500.0,0.00016986,2]
[329199235,1718172637898,-1918.74,0.00016986,2]
[329199236,1718172637918,-1000.86,0.00016986,2]
[329199237,1718172637959,-1188.93,0.00016986,2]
[329199238,1718172637977,-4707.01,0.00016986,2]
[329199239,1718172638014,-500.0,0.00016986,2]
[329199240,1718172638033,-500.0,0.00016986,2]
[329199241,1718172638045,-500.0,0.00016986,2]
[329199242,1718172638072,-3292.93,0.00016986,2]
[329199243,1718172638088,-500.0,0.00016986,2]
[329199244,1718172638102,-500.0,0.00016986,2]
[329199245,1718172638120,-1314.37,0.00016986,2]
[329199246,1718172638137,-682.24,0.00016986,2]
[329199247,1718172638155,-500.0,0.00016986,2]
[329199248,1718172638186,-1140.06,0.00016986,2]
[329199249,1718172638215,-500.0,0.00016986,2]
[329199250,1718172638230,-709.43,0.00016986,2]
[329199251,1718172638249,-585.37,0.00016986,2]
[329199252,1718172638265,-500.0,0.00016986,2]
[329199253,1718172638282,-1000.0,0.00017,2]
[329199254,1718172638304,-785.29,0.00017259,2]
[329199255,1718172638317,-500.0,0.0001726,4]
[329199256,1718172638330,-250.0,0.0001726,2]
[329199257,1718172638342,-500.0,0.0001726,2]
[329199258,1718172638354,-500.0,0.0001726,2]
[329199259,1718172638541,-1800.05,0.0001726,2]
[329199260,1718172638562,-500.0,0.0001726,2]
[329199261,1718172638574,-500.0,0.0001726,2]
[329199262,1718172638585,-500.0,0.0001726,2]
[329199263,1718172638598,-500.0,0.0001726,2]
[329199264,1718172638623,-500.0,0.0001726,2]
[329199265,1718172638645,-754.57,0.0001726,2]
[329199266,1718172638656,-500.0,0.0001726,2]
[329199269,1718172638688,-500.0,0.0001726,2]
[329199270,1718172638703,-991.24,0.0001726,2]
[329199271,1718172638720,-506.52,0.0001726,2]
[329199272,1718172638732,-5830.46,0.0001726,2]
[329199273,1718172638752,-500.0,0.0001726,2]
[329199274,1718172638798,-500.0,0.0001726,2]
[329199275,1718172638814,-1918.74,0.0001726,2]
[329199276,1718172638825,-1000.86,0.0001726,2]
[329199277,1718172638844,-1188.93,0.0001726,2]
[329199278,1718172638872,-4707.01,0.0001726,2]
[329199279,1718172638886,-500.0,0.0001726,2]
[329199280,1718172638903,-500.0,0.0001726,2]
[329199281,1718172638915,-500.0,0.0001726,2]
[329199282,1718172638946,-3292.93,0.0001726,2]
[329199283,1718172638974,-500.0,0.0001726,2]
[329199284,1718172638994,-500.0,0.0001726,2]
[329199285,1718172639007,-1314.37,0.0001726,2]
[329199286,1718172639023,-682.24,0.0001726,2]
[329199287,1718172639042,-172.52007797,0.0001726,2]
[329199288,1718172639056,-1140.06,0.0001726,2]
[329199289,1718172639075,-500.0,0.0001726,2]
[329199290,1718172639090,-709.43,0.0001726,2]
[329199292,1718172639101,-585.37,0.0001726,2]
[329199294,1718172639115,-500.0,0.0001726,2]
[329199296,1718172639129,-785.29,0.00017533,2]
[329199297,1718172639147,-500.0,0.00017534,4]
[329199298,1718172639166,-250.0,0.00017534,2]
[329199299,1718172639181,-500.0,0.00017534,2]
[329199300,1718172639203,-500.0,0.00017534,2]
[329199301,1718172639224,-1800.05,0.00017534,2]
[329199302,1718172639249,-500.0,0.00017534,2]
[329199303,1718172639264,-500.0,0.00017534,2]
[329199304,1718172639278,-500.0,0.00017534,2]
[329199305,1718172639296,-267.12796904,0.00017534,2]
[329199306,1718172639309,-754.57,0.00017534,2]
[329199307,1718172639321,-500.0,0.00017534,2]
[329199308,1718172639332,-500.0,0.00017534,2]
[329199309,1718172639350,-991.24,0.00017534,2]
[329199310,1718172639364,-506.52,0.00017534,2]
[329199311,1718172639379,-5830.46,0.00017534,2]
[329199312,1718172639396,-500.0,0.00017534,2]
[329199313,1718172639410,-500.0,0.00017534,2]
[329199314,1718172639426,-1918.74,0.00017534,2]
[329199315,1718172639442,-1000.86,0.00017534,2]
[329199316,1718172639454,-1188.93,0.00017534,2]
[329199317,1718172639475,-4707.01,0.00017534,2]
[329199318,1718172639490,-500.0,0.00017534,2]
[329199319,1718172639500,-500.0,0.00017534,2]
[329199320,1718172639532,-500.0,0.00017534,2]
[329199321,1718172639542,-3292.93,0.00017534,2]
[329199322,1718172639554,-500.0,0.00017534,2]
[329199323,1718172639568,-500.0,0.00017534,2]
[329199324,1718172639578,-1314.37,0.00017534,2]
[329199325,1718172639590,-682.24,0.00017534,2]
[329199326,1718172639602,-1140.06,0.00017534,2]
[329199327,1718172639613,-500.0,0.00017534,2]
[329199328,1718172639623,-709.43,0.00017534,2]
[329199329,1718172639634,-585.37,0.00017534,2]
[329199330,1718172639644,-500.0,0.00017534,2]
[329199331,1718172639655,-2712.11252312,0.00017568,2]
[329199332,1718172639666,-785.29,0.00017807,2]
[329199333,1718172639678,-500.0,0.00017808,4]
[329199334,1718172639691,-250.0,0.00017808,2]
[329199335,1718172639703,-381.85295237,0.00017808,2]
[329199337,1718172639713,-500.0,0.00017808,2]
[329199338,1718172639724,-1800.05,0.00017808,2]
[329199339,1718172639735,-500.0,0.00017808,2]
[329199340,1718172639746,-500.0,0.00017808,2]
[329199341,1718172639758,-500.0,0.00017808,2]
[329199342,1718172639775,-754.57,0.00017808,2]
[329199343,1718172639826,-500.0,0.00017808,2]
[329199344,1718172639839,-500.0,0.00017808,2]
[329199345,1718172639850,-991.24,0.00017808,2]
[329199346,1718172639862,-506.52,0.00017808,2]
[329199347,1718172639872,-5830.46,0.00017808,2]
[329199348,1718172639884,-515.65962449,0.00017808,2]
[329199349,1718172639896,-500.0,0.00017808,2]
[329199350,1718172639907,-1918.74,0.00017808,2]
[329199351,1718172639917,-1000.86,0.00017808,2]
[329199352,1718172639955,-1188.93,0.00017808,2]
[329199353,1718172639966,-4707.01,0.00017808,2]
[329199354,1718172639978,-500.0,0.00017808,2]
[329199355,1718172639989,-500.0,0.00017808,2]
[329199356,1718172640005,-500.0,0.00017808,2]
[329199357,1718172640015,-3292.93,0.00017808,2]
[329199358,1718172640026,-500.0,0.00017808,2]
[329199359,1718172640037,-500.0,0.00017808,2]
[329199360,1718172640052,-1314.37,0.00017808,2]
[329199361,1718172640062,-682.24,0.00017808,2]
[329199362,1718172640074,-1140.06,0.00017808,2]
[329199363,1718172640090,-500.0,0.00017808,2]
[329199364,1718172640100,-709.43,0.00017808,2]
[329199365,1718172640111,-585.37,0.00017808,2]
[329199366,1718172640122,-500.0,0.00017808,2]
[329199367,1718172640133,-1898.36301075,0.0001784,2]
[329199368,1718172640147,-10491.92816074,0.00017898,2]
[329199369,1718172640158,-151.22,0.00017932,2]
[329199370,1718172640169,-220.44888761,0.00018,2]
[329199371,1718172640180,-1355.61945113,0.00018,2]
[329199372,1718172640192,-876.82850055,0.00018,2]
[329199373,1718172640205,-2765.44251206,0.00018,2]
[329199374,1718172640220,-632.99963654,0.00018,2]
[329199375,1718172640234,-155.02015262,0.00018,2]
[329199376,1718172640245,-785.29,0.00018081,2]
[329199377,1718172640257,-500.0,0.00018082,4]
[329199378,1718172640270,-250.0,0.00018082,2]
[329199379,1718172640281,-500.0,0.00018082,2]
[329199380,1718172640294,-1800.05,0.00018082,2]
[329199381,1718172640307,-500.0,0.00018082,2]
[329199382,1718172640318,-500.0,0.00018082,2]
[329199383,1718172640330,-500.0,0.00018082,2]
[329199384,1718172640341,-754.57,0.00018082,2]
[329199385,1718172640355,-500.0,0.00018082,2]
[329199386,1718172640375,-500.0,0.00018082,2]
[329199387,1718172640387,-991.24,0.00018082,2]
[329199388,1718172640398,-506.52,0.00018082,2]
[329199389,1718172640408,-5830.46,0.00018082,2]
[329199390,1718172640419,-500.0,0.00018082,2]
[329199391,1718172640439,-1918.74,0.00018082,2]
[329199392,1718172640451,-1000.86,0.00018082,2]
[329199393,1718172640463,-1188.93,0.00018082,2]
[329199394,1718172640475,-4707.01,0.00018082,2]
[329199395,1718172640486,-500.0,0.00018082,2]
[329199396,1718172640497,-500.0,0.00018082,2]
[329199397,1718172640508,-500.0,0.00018082,2]
[329199398,1718172640519,-3000.0,0.00018082,2]
[329199399,1718172640531,-3000.0,0.00018082,2]
[329199400,1718172640541,-3000.0,0.00018082,2]
[329199401,1718172640553,-3000.0,0.00018082,2]
[329199402,1718172640565,-3000.0,0.00018082,2]
[329199403,1718172640575,-3292.93,0.00018082,2]
[329199404,1718172640588,-500.0,0.00018082,2]
[329199405,1718172640599,-500.0,0.00018082,2]
[329199406,1718172640621,-1314.37,0.00018082,2]
[329199407,1718172640633,-682.24,0.00018082,2]
[329199408,1718172640644,-1140.06,0.00018082,2]
[329199409,1718172640662,-500.0,0.00018082,2]
[329199410,1718172640673,-709.43,0.00018082,2]
[329199411,1718172640686,-585.37,0.00018082,2]
[329199412,1718172640698,-500.0,0.00018082,2]
[329199416,1718172640717,-2712.11252312,0.00018186,2]
[329199425,1718172640738,-823.0,0.0001821,2]
[329199428,1718172640753,-785.29,0.00018355,2]
[329199430,1718172640764,-500.0,0.00018356,4]
[329199432,1718172640776,-250.0,0.00018356,2]
[329199434,1718172640803,-500.0,0.00018356,2]
[329199437,1718172640820,-1800.05,0.00018356,2]
[329199439,1718172640831,-500.0,0.00018356,2]
[329199441,1718172640841,-500.0,0.00018356,2]
[329199443,1718172640852,-500.0,0.00018356,2]
[329199445,1718172640863,-754.57,0.00018356,2]
[329199447,1718172640874,-500.0,0.00018356,2]
[329199449,1718172640885,-500.0,0.00018356,2]
[329199451,1718172640896,-991.24,0.00018356,2]
[329199452,1718172640909,-506.52,0.00018356,2]
[329199453,1718172640947,-5830.46,0.00018356,2]
[329199454,1718172640960,-500.0,0.00018356,2]
[329199455,1718172640975,-1918.74,0.00018356,2]
[329199456,1718172640986,-1000.86,0.00018356,2]
[329199457,1718172641000,-1188.93,0.00018356,2]
[329199458,1718172641011,-4707.01,0.00018356,2]
[329199459,1718172641022,-500.0,0.00018356,2]
[329199460,1718172641033,-500.0,0.00018356,2]
[329199461,1718172641044,-500.0,0.00018356,2]
[329199462,1718172641059,-3292.93,0.00018356,2]
[329199463,1718172641070,-500.0,0.00018356,2]
[329199464,1718172641082,-500.0,0.00018356,2]
[329199465,1718172641096,-1314.37,0.00018356,2]
[329199466,1718172641107,-682.24,0.00018356,2]
[329199467,1718172641117,-1140.06,0.00018356,2]
[329199468,1718172641128,-500.0,0.00018356,2]
[329199469,1718172641139,-709.43,0.00018356,2]
[329199470,1718172641149,-585.37,0.00018356,2]
[329199471,1718172641160,-500.0,0.00018356,2]
[329199472,1718172641170,-606.91207968,0.000185,2]
[329199473,1718172641181,-166.666666,0.00018575,2]
[329199474,1718172641191,-785.29,0.00018629,2]
[329199475,1718172641201,-500.0,0.0001863,4]
[329199476,1718172641211,-250.0,0.0001863,2]
[329199477,1718172641223,-500.0,0.0001863,2]
[329199478,1718172641234,-1800.05,0.0001863,2]
[329199479,1718172641244,-500.0,0.0001863,2]
[329199480,1718172641255,-500.0,0.0001863,2]
[329199481,1718172641266,-500.0,0.0001863,2]
[329199482,1718172641276,-754.57,0.0001863,2]
[329199483,1718172641286,-500.0,0.0001863,2]
[329199484,1718172641297,-500.0,0.0001863,2]
[329199485,1718172641307,-991.24,0.0001863,2]
[329199486,1718172641318,-506.52,0.0001863,2]
[329199487,1718172641329,-1050.02240549,0.0001863,2]
[329199488,1718172641460,-826.65721377,0.0001863,2]
[329199489,1718172641476,-522.2506997,0.0001863,2]
[329199490,1718172641813,-500.0,0.00016438,2]
[329199491,1718172641824,-500.0,0.00016712,2]
[329199492,1718172641834,-314.63,0.00016986,2]
[329199493,1718172641845,-3431.52968104,0.0001863,2]
[329199494,1718172641857,-500.0,0.0001863,2]
[329199495,1718172641867,-1918.74,0.0001863,2]
[329199496,1718172641878,-1000.86,0.0001863,2]
[329199497,1718172641888,-1188.93,0.0001863,2]
[329199498,1718172641899,-4707.01,0.0001863,2]
[329199499,1718172641909,-500.0,0.0001863,2]
[329199500,1718172641922,-234.66756291,0.0001863,2]
[329199501,1718172641970,-500.0,0.0001863,2]
[329199502,1718172641981,-3292.93,0.0001863,2]
[329199503,1718172641992,-500.0,0.0001863,2]
[329199504,1718172642002,-500.0,0.0001863,2]
[329199505,1718172642013,-1314.37,0.0001863,2]
[329199506,1718172642024,-682.24,0.0001863,2]
[329199508,1718172642036,-1140.06,0.0001863,2]
[329199509,1718172642047,-395.25526891,0.0001863,2]
[329199510,1718172642059,-709.43,0.0001863,2]
[329199511,1718172642070,-585.37,0.0001863,2]
[329199512,1718172642081,-500.0,0.0001863,2]
[329199513,1718172642092,-250.0,0.0001863,2]
[329199514,1718172642103,-5281.92082876,0.00018654,2]
[329199515,1718172642114,-600.0,0.00018674,2]
[329199516,1718172642125,-2712.11252312,0.00018804,2]
[329199517,1718172642137,-299.025,0.0001884,2]
[329199518,1718172642149,-504.828,0.0001884,2]
[329199519,1718172642160,-600.0,0.00018868,2]
[329199520,1718172642171,-785.29,0.00018903,2]
[329199521,1718172642183,-500.0,0.00018904,4]
[329199522,1718172642194,-250.0,0.00018904,2]
[329199523,1718172642206,-500.0,0.00018904,2]
[329199524,1718172642217,-1800.05,0.00018904,2]
[329199525,1718172642229,-500.0,0.00018904,2]
[329199526,1718172642241,-294.89911392,0.00018904,2]
[329199527,1718172642254,-500.0,0.00018904,2]
[329199528,1718172642267,-754.57,0.00018904,2]
[329199529,1718172642287,-500.0,0.00018904,2]
[329199530,1718172642298,-500.0,0.00018904,2]
[329199531,1718172642312,-991.24,0.00018904,2]
[329199532,1718172642329,-5830.46,0.00018904,2]
[329199533,1718172642353,-500.0,0.00018904,2]
[329199534,1718172642367,-1918.74,0.00018904,2]
[329199535,1718172642382,-1000.86,0.00018904,2]
[329199536,1718172642402,-1188.93,0.00018904,2]
[329199537,1718172642419,-4707.01,0.00018904,2]
[329199538,1718172642433,-500.0,0.00018904,2]
[329199539,1718172642446,-500.0,0.00018904,2]
[329199540,1718172642458,-3292.93,0.00018904,2]
[329199541,1718172642469,-500.0,0.00018904,2]
[329199542,1718172642481,-500.0,0.00018904,2]
[329199543,1718172642492,-1314.37,0.00018904,2]
[329199544,1718172642503,-682.24,0.00018904,2]
[329199545,1718172642516,-1140.06,0.00018904,2]
[329199546,1718172642527,-709.43,0.00018904,2]
[329199547,1718172642538,-585.37,0.00018904,2]
[329199548,1718172642551,-500.0,0.00018904,2]
[329199549,1718172642565,-794.7,0.00018923,2]
[329199550,1718172642576,-194.4,0.00018923,2]
[329199551,1718172642588,-153.0,0.00018986,2]
[329199552,1718172642601,-238040.19893305,0.00018994,2]
[329199553,1718172642623,-7270.73643792,0.00019,2]
[329199554,1718172642635,-251698.4915,0.00019,2]
[329199555,1718172642646,-163.14541634,0.00019,2]
[329199556,1718172642786,-394.20283113,0.00019,2]
[329199557,1718172642798,-1000.0,0.00019,8]
[329199558,1718172642811,-6631.87039409,0.00019026,2]
[329199559,1718172642822,-23836.9492602,0.00019031,2]
[329199560,1718172642834,-60364.60272119,0.00019034,2]
[329199561,1718172642846,-33611.73968497,0.00019041,2]
[329199562,1718172642858,-1191.18286238,0.00019041,2]
[329199563,1718172642869,-33611.73968497,0.00019044,2]
[329199564,1718172642882,-60364.60272119,0.00019045,2]
[329199565,1718172642893,-23836.9492602,0.0001905,2]
[329199566,1718172642905,-6631.87039409,0.00019051,2]
[329199567,1718172642917,-1191.18286238,0.00019054,2]
[329199568,1718172642950,-6631.87039409,0.00019056,2]
[329199569,1718172642966,-60364.60272119,0.0001906,2]
[329199570,1718172642977,-600.0,0.00019063,2]
[329199571,1718172642988,-23836.9492602,0.00019065,2]
[329199572,1718172643000,-23836.9492602,0.00019066,2]
[329199573,1718172643011,-6631.87039409,0.00019072,2]
[329199574,1718172643023,-9404.93344543,0.00019075,2]
[329199575,1718172643039,-1371.40881746,0.00019075,2]
[329199576,1718172643058,-13060.60699731,0.00019075,2]
[329199577,1718172643075,-785.29,0.00019077,2]
[329199578,1718172643088,-785.29,0.00019077,2]
[329199579,1718172643106,-785.29,0.00019077,2]
[329199580,1718172643125,-785.29,0.00019077,2]
[329199581,1718172643139,-785.29,0.00019077,2]
[329199582,1718172643151,-785.37065221,0.00019077,2]
[329199583,1718172643162,-1191.18286238,0.00019083,2]
[329199584,1718172643174,-6631.87039409,0.00019085,2]
[329199585,1718172643186,-19161.96614665,0.0001909,2]
[329199619,1718172644718,-500.0,0.00016438,2]
[329199621,1718172644730,-500.0,0.00016438,2]
[329199623,1718172644745,-368.40107718,0.00016438,2]
[329201032,1718173833958,-190.26891304,0.00013741,2]
[329201033,1718173833974,-300.0,0.00014327,2]
[329201034,1718173833987,-145.52596579,0.00014328,2]
[329201035,1718173834027,-1007.88974121,0.00014328,2]
[329201037,1718173834050,-23746.584293,0.00014328,2]
[329201039,1718173834067,-1719.7263211,0.00014394,2]
[329201042,1718173834091,-311.502726,0.00014591,2]
[329201043,1718173834106,-4475.56497982,0.00015204,2]
[329201046,1718173834122,-229.0,0.00015691,2]
[329201048,1718173834132,-1790.45690115,0.00016337,2]
[329201050,1718173834143,-2685.70176816,0.00016437,2]
[329201052,1718173834158,-500.0,0.00016438,2]
[329201054,1718173834171,-1526.71,0.00016438,2]
[329201056,1718173834184,-500.0,0.00016438,2]
[329201058,1718173834198,-500.0,0.00016438,2]
[329201061,1718173834222,-500.0,0.00016438,2]
[329201063,1718173834234,-500.0,0.00016438,2]
[329201066,1718173834246,-500.0,0.00016438,2]
[329201068,1718173834269,-500.0,0.00016438,2]
[329201070,1718173834285,-480.48001721,0.00016438,2]
[329201072,1718173834298,-19.51998279,0.00016438,2]
[329201075,1718173834313,-500.0,0.00016438,2]
[329201079,1718173834325,-500.0,0.00016438,2]
[329201081,1718173834338,-333.18209158,0.00016438,2]
[329201131,1718173840099,-370.34790842,0.00016438,2]
[329201133,1718173840111,-500.0,0.00016438,2]
[329201135,1718173840123,-500.0,0.00016438,2]
[329201136,1718173840137,-500.0,0.00016438,2]
[329201138,1718173840149,-500.0,0.00016438,2]
[329201140,1718173840160,-500.0,0.00016438,2]
[329201142,1718173840175,-500.0,0.00016438,2]
[329201144,1718173840192,-503.20458748,0.00016438,2]
[329201146,1718173840207,-507.14075811,0.00016438,2]
[329201148,1718173840226,-500.0,0.00016438,2]
[329201150,1718173840242,-511.55310299,0.00016438,2]
[329201152,1718173840254,-500.0,0.00016438,2]
[329201154,1718173840267,-4707.62,0.00016438,2]
[329201157,1718173840283,-500.0,0.00016438,2]
[329201158,1718173840296,-500.0,0.00016438,2]
[329201159,1718173840308,-500.0,0.00016438,2]
[329201161,1718173840319,-500.0,0.00016438,2]
[329201163,1718173840331,-885.7,0.00016438,2]
[329201165,1718173840342,-500.0,0.00016438,2]
[329201166,1718173840354,-854.71,0.00016438,2]
[329201167,1718173840367,-4407.25,0.00016438,2]
[329201168,1718173840382,-500.0,0.00016438,2]
[329201169,1718173840430,-513.50225528,0.00016438,2]
[329201170,1718173840444,-500.0,0.00016438,2]
[329201172,1718173840458,-500.0,0.00016438,2]
[329201173,1718173840470,-500.0,0.00016438,2]
[329201174,1718173840484,-500.0,0.00016438,2]
[329201175,1718173840501,-500.0,0.00016438,2]
[329201176,1718173840526,-500.0,0.00016438,2]
[329201177,1718173840537,-500.0,0.00016438,2]
[329201178,1718173840555,-1234.94,0.00016438,2]
[329201179,1718173840569,-500.0,0.00016438,2]
[329201180,1718173840581,-500.0,0.00016438,2]
[329201181,1718173840591,-500.0,0.00016438,2]
[329201182,1718173840601,-500.0,0.00016438,2]
[329201183,1718173840615,-500.0,0.00016438,2]
[329201184,1718173840626,-500.0,0.00016438,2]
[329201185,1718173840642,-500.0,0.00016438,2]
[329201186,1718173840653,-500.0,0.00016438,2]
[329201187,1718173840665,-500.0,0.00016438,2]
[329201188,1718173840675,-500.0,0.00016438,2]
[329201189,1718173840685,-500.0,0.00016438,2]
[329201190,1718173840695,-500.0,0.00016438,2]
[329201191,1718173840714,-500.0,0.00016438,2]
[329201192,1718173840728,-500.0,0.00016438,2]
[329201193,1718173840746,-500.0,0.00016438,2]
[329201194,1718173840756,-500.0,0.00016438,2]
[329201195,1718173840769,-1071.31,0.00016438,2]
[329201196,1718173840780,-504.93859245,0.00016438,2]
[329201197,1718173840791,-628.69,0.00016438,2]
[329201198,1718173840802,-500.0,0.00016438,2]
[329201199,1718173840812,-668.61,0.00016438,2]
[329201200,1718173840823,-503.31503696,0.00016438,2]
[329201201,1718173840833,-500.0,0.00016438,2]
[329201202,1718173840849,-270.06174295,0.00016438,2]
[329201203,1718173840860,-500.0,0.00016438,2]
[329201204,1718173841019,-500.0,0.00016438,2]
[329201205,1718173841034,-508.58,0.00016438,2]
[329201206,1718173841046,-500.0,0.00016438,2]
[329201207,1718173841057,-500.0,0.00016438,2]
[329201208,1718173841067,-500.0,0.00016438,2]
[329201209,1718173841078,-500.0,0.00016438,2]
[329201210,1718173841089,-500.0,0.00016438,2]
[329201211,1718173841102,-500.0,0.00016438,2]
[329201212,1718173841112,-500.0,0.00016438,2]
[329201213,1718173841123,-500.0,0.00016438,2]
[329201214,1718173841137,-500.0,0.00016438,2]
[329201215,1718173841155,-500.0,0.00016438,2]
[329201216,1718173841170,-502.21572097,0.00016438,2]
[329201217,1718173841186,-500.0,0.00016438,2]
[329201218,1718173841200,-500.0,0.00016438,2]
[329201219,1718173841218,-500.0,0.00016438,2]
[329201220,1718173841229,-16790.55058552,0.00016709,2]
[329201221,1718173841244,-212.0,0.00016709,2]
[329201222,1718173841268,-500.0,0.0001671,2]
[329201223,1718173841283,-170.68782108,0.00016711,2]
[329201224,1718173841294,-500.0,0.00016711,2]
[329201225,1718173841310,-509.96720287,0.00016711,2]
[329201226,1718173841332,-500.0,0.00016711,2]
[329201227,1718173841346,-500.0,0.00016711,2]
[329201228,1718173841371,-500.0,0.00016711,2]
[329201229,1718173841388,-500.0,0.00016711,2]
[329201230,1718173841438,-500.0,0.00016711,2]
[329201231,1718173841450,-500.0,0.00016711,2]
[329201232,1718173841466,-504.8708622,0.00016711,2]
[329201233,1718173841479,-500.60297449,0.00016711,2]
[329201234,1718173841491,-500.0,0.00016711,2]
[329201235,1718173841502,-500.0,0.00016711,2]
[329201236,1718173841524,-500.0,0.00016711,2]
[329201237,1718173841537,-500.0,0.00016711,2]
[329201238,1718173841551,-500.0,0.00016711,2]
[329201239,1718173841566,-505.14857162,0.00016711,2]
[329201240,1718173841584,-500.0,0.00016711,2]
[329201241,1718173841595,-500.0,0.00016711,2]
[329201242,1718173841607,-502.72338017,0.00016711,2]
[329201243,1718173841618,-505.67910671,0.00016711,2]
[329201244,1718173841629,-526.29441157,0.00016711,2]
[329201245,1718173841648,-500.0,0.00016711,2]
[329201246,1718173841659,-504.51495789,0.00016711,2]
[329201247,1718173841671,-500.0,0.00016711,2]
[329201248,1718173841682,-500.0,0.00016711,2]
[329201249,1718173841695,-500.0,0.00016711,4]
[329201250,1718173841710,-500.0,0.00016711,2]
[329201251,1718173841722,-500.0,0.00016711,2]
[329201252,1718173841735,-1674.29,0.00016711,2]
[329201253,1718173841748,-500.0,0.00016711,2]
[329201254,1718173841762,-500.0,0.00016711,2]
[329201255,1718173841772,-509.30829293,0.00016711,2]
[329201256,1718173841783,-993.51,0.00016711,2]
[329201257,1718173841794,-500.0,0.00016711,2]
[329201258,1718173841807,-500.0,0.00016711,2]
[329201259,1718173841818,-379.10334995,0.00016711,2]
[329201260,1718173841829,-500.0,0.00016711,2]
[329201261,1718173841844,-500.0,0.00016711,2]
[329201262,1718173841857,-560.7719292,0.00016711,2]
[329201263,1718173841872,-250.0,0.00016711,2]
[329201264,1718173841883,-500.0,0.00016711,2]
[329201265,1718173841896,-509.95549602,0.00016711,2]
[329201266,1718173841906,-500.0,0.00016711,2]
[329201267,1718173841919,-3326.81,0.00016711,2]
[329201268,1718173841937,-500.0,0.00016711,2]
[329201269,1718173841961,-364.53588936,0.00016711,2]